[Event "Titled Tuesday Blitz May 9 Early 2023"]
[White "Kravtsiv, Martyn"]
[Black "Bortnyk, Olexandr"]
[WhiteFideId "14113147"]
[BlackFideId "14120828"]
[WhiteElo "2695"]
[BlackElo "2734"]
[Result "0-1"]
[Round "04"]
[TimeControl "180+2"]
[Date "2023.05.09"]
[WhiteClock "0:00:00"]
[BlackClock "0:00:04"]

1. e4 {[%clk 0:03:00]}  Nf6 {[%clk 0:02:57]} 2. Nc3 {[%clk 0:03:00]}  d6 {[%clk 0:02:58]} 3. d4 {[%clk 0:02:59]}  e5 {[%clk 0:02:58]} 4. Nf3 {[%clk 0:02:58]}  Nbd7 {[%clk 0:02:58]} 5. Bc4 {[%clk 0:02:57]}  Be7 {[%clk 0:02:58]} 6. a4 {[%clk 0:02:56]}  c6 {[%clk 0:02:54]} 7. O-O {[%clk 0:02:55]}  Qc7 {[%clk 0:02:48]} 8. Re1 {[%clk 0:02:54]}  O-O {[%clk 0:02:46]} 9. h3 {[%clk 0:02:51]}  h6 {[%clk 0:02:44]} 10. Bf1 {[%clk 0:02:47]}  Re8 {[%clk 0:02:38]} 11. a5 {[%clk 0:02:37]}  Nf8 {[%clk 0:02:36]} 12. b3 {[%clk 0:02:11]}  Ng6 {[%clk 0:02:33]} 13. g3 {[%clk 0:02:02]}  Bd7 {[%clk 0:02:27]} 14. Bg2 {[%clk 0:02:01]}  Rad8 {[%clk 0:02:25]} 15. Bb2 {[%clk 0:02:00]}  Bc8 {[%clk 0:02:18]} 16. Qc1 {[%clk 0:01:55]}  Nh7 {[%clk 0:02:17]} 17. d5 {[%clk 0:01:54]}  c5 {[%clk 0:02:13]} 18. Nb5 {[%clk 0:01:47]}  Qb8 {[%clk 0:02:13]} 19. Qd1 {[%clk 0:01:43]}  f5 {[%clk 0:02:07]} 20. exf5 {[%clk 0:01:40]}  Bxf5 {[%clk 0:02:08]} 21. Nc3 {[%clk 0:01:33]}  Qc8 {[%clk 0:02:08]} 22. Kh2 {[%clk 0:01:32]}  Rf8 {[%clk 0:01:57]} 23. Ne4 {[%clk 0:01:31]}  Rf7 {[%clk 0:01:49]} 24. Nfd2 {[%clk 0:01:28]}  Rdf8 {[%clk 0:01:43]} 25. Qe2 {[%clk 0:01:26]}  Qd7 {[%clk 0:01:33]} 26. Rf1 {[%clk 0:01:25]}  Nf6 {[%clk 0:01:20]} 27. Nxf6+ {[%clk 0:01:21]}  Bxf6 {[%clk 0:01:21]} 28. Ne4 {[%clk 0:01:20]}  Bd8 {[%clk 0:01:21]} 29. Bc1 {[%clk 0:01:18]}  Ne7 {[%clk 0:01:16]} 30. c4 {[%clk 0:01:09]}  Bg6 {[%clk 0:01:13]} 31. Bb2 {[%clk 0:01:08]}  Nf5 {[%clk 0:01:12]} 32. a6 {[%clk 0:01:08]}  b6 {[%clk 0:01:09]} 33. f4 {[%clk 0:01:04]}  Nd4 {[%clk 0:00:31]} 34. Bxd4 {[%clk 0:01:03]}  exd4 {[%clk 0:00:32]} 35. Rae1 {[%clk 0:01:01]}  Be7 {[%clk 0:00:27]} 36. Qd2 {[%clk 0:00:57]}  Qc8 {[%clk 0:00:27]} 37. g4 {[%clk 0:00:57]}  Qxa6 {[%clk 0:00:25]} 38. f5 {[%clk 0:00:56]}  Bh7 {[%clk 0:00:25]} 39. Qf4 {[%clk 0:00:52]}  b5 {[%clk 0:00:25]} 40. Ra1 {[%clk 0:00:38]}  Qb6 {[%clk 0:00:25]} 41. Rf2 {[%clk 0:00:30]}  a5 {[%clk 0:00:21]} 42. cxb5 {[%clk 0:00:29]}  Ra8 {[%clk 0:00:16]} 43. Bf1 {[%clk 0:00:28]}  Kh8 {[%clk 0:00:13]} 44. Qg3 {[%clk 0:00:27]}  Rff8 {[%clk 0:00:13]} 45. Bc4 {[%clk 0:00:27]}  Rae8 {[%clk 0:00:13]} 46. Raf1 {[%clk 0:00:25]}  Bd8 {[%clk 0:00:12]} 47. Bd3 {[%clk 0:00:23]}  Re5 {[%clk 0:00:11]} 48. f6 {[%clk 0:00:23]}  g5 {[%clk 0:00:09]} 49. Nd2 {[%clk 0:00:19]}  Re3 {[%clk 0:00:06]} 50. Rf3 {[%clk 0:00:13]}  Bxd3 {[%clk 0:00:07]} 51. Rxe3 {[%clk 0:00:14]}  dxe3 {[%clk 0:00:07]} 52. Rd1 {[%clk 0:00:07]}  exd2 {[%clk 0:00:04]} 53. Qxd3 {[%clk 0:00:07]}  Bxf6 {[%clk 0:00:04]} 54. Rxd2 {[%clk 0:00:05]}  Be5+ {[%clk 0:00:05]} 55. Kg2 {[%clk 0:00:05]}  Kg7 {[%clk 0:00:03]} 56. Rf2 {[%clk 0:00:04]}  Rxf2+ {[%clk 0:00:03]} 57. Kxf2 {[%clk 0:00:00]}  c4+ {[%clk 0:00:04]} 0-1


[Site "https://www.chess.com"]

[Event "Titled Tuesday Blitz May 9 Early 2023"]
[White "Nguyen, Ngoc Truong Son"]
[Black "Moroni, Luca Jr"]
[WhiteFideId "12401110"]
[BlackFideId "865834"]
[WhiteElo "2556"]
[BlackElo "2569"]
[Result "1/2-1/2"]
[Round "04"]
[TimeControl "180+2"]
[Date "2023.05.09"]
[WhiteClock "0:00:25"]
[BlackClock "0:00:08"]

1. d4 {[%clk 0:02:59]}  d5 {[%clk 0:02:59]} 2. Nf3 {[%clk 0:02:59]}  e6 {[%clk 0:02:58]} 3. c4 {[%clk 0:02:58]}  a6 {[%clk 0:02:58]} 4. e3 {[%clk 0:02:55]}  dxc4 {[%clk 0:02:54]} 5. Bxc4 {[%clk 0:02:56]}  Nf6 {[%clk 0:02:54]} 6. O-O {[%clk 0:02:54]}  b5 {[%clk 0:02:54]} 7. Be2 {[%clk 0:02:54]}  Bb7 {[%clk 0:02:54]} 8. a4 {[%clk 0:02:45]}  b4 {[%clk 0:02:54]} 9. a5 {[%clk 0:02:42]}  c5 {[%clk 0:02:50]} 10. dxc5 {[%clk 0:02:39]}  Bxc5 {[%clk 0:02:50]} 11. Qxd8+ {[%clk 0:02:38]}  Kxd8 {[%clk 0:02:51]} 12. Nfd2 {[%clk 0:02:32]}  Ke7 {[%clk 0:02:48]} 13. Nb3 {[%clk 0:02:30]}  Bd6 {[%clk 0:02:47]} 14. N1d2 {[%clk 0:02:29]}  Bd5 {[%clk 0:02:37]} 15. f3 {[%clk 0:02:28]}  Nbd7 {[%clk 0:02:31]} 16. e4 {[%clk 0:02:26]}  Bxb3 {[%clk 0:02:28]} 17. Nxb3 {[%clk 0:02:27]}  Nc5 {[%clk 0:02:23]} 18. Nd4 {[%clk 0:02:27]}  Rhc8 {[%clk 0:02:13]} 19. Be3 {[%clk 0:02:25]}  Nfd7 {[%clk 0:02:06]} 20. Rac1 {[%clk 0:02:22]}  g6 {[%clk 0:01:43]} 21. Rfd1 {[%clk 0:02:19]}  e5 {[%clk 0:01:34]} 22. Nc2 {[%clk 0:02:01]}  Nb3 {[%clk 0:01:34]} 23. Nxb4 {[%clk 0:01:26]}  Bxb4 {[%clk 0:01:21]} 24. Rxc8 {[%clk 0:01:26]}  Rxc8 {[%clk 0:01:22]} 25. Bxa6 {[%clk 0:01:27]}  Rb8 {[%clk 0:01:18]} 26. Bc4 {[%clk 0:01:25]}  Nxa5 {[%clk 0:01:10]} 27. Bxf7 {[%clk 0:01:24]}  Kxf7 {[%clk 0:00:49]} 28. Rxd7+ {[%clk 0:01:24]}  Ke6 {[%clk 0:00:46]} 29. Rxh7 {[%clk 0:01:23]}  Nc4 {[%clk 0:00:45]} 30. Bf2 {[%clk 0:01:21]}  Be7 {[%clk 0:00:38]} 31. h4 {[%clk 0:01:19]}  Rxb2 {[%clk 0:00:37]} 32. h5 {[%clk 0:01:08]}  gxh5 {[%clk 0:00:36]} 33. Rxh5 {[%clk 0:01:07]}  Bf8 {[%clk 0:00:25]} 34. Rh7 {[%clk 0:01:01]}  Ra2 {[%clk 0:00:18]} 35. Rc7 {[%clk 0:00:59]}  Nd2 {[%clk 0:00:14]} 36. Rc6+ {[%clk 0:00:57]}  Kd7 {[%clk 0:00:14]} 37. Rg6 {[%clk 0:00:51]}  Rc2 {[%clk 0:00:09]} 38. Ra6 {[%clk 0:00:50]}  Nb3 {[%clk 0:00:06]} 39. Ra7+ {[%clk 0:00:47]}  Ke6 {[%clk 0:00:06]} 40. Ra6+ {[%clk 0:00:47]}  Bd6 {[%clk 0:00:06]} 41. Be3 {[%clk 0:00:43]}  Re2 {[%clk 0:00:04]} 42. Bf2 {[%clk 0:00:39]}  Nc1 {[%clk 0:00:04]} 43. Bc5 {[%clk 0:00:36]}  Rd2 {[%clk 0:00:04]} 44. Bxd6 {[%clk 0:00:24]}  Rxd6 {[%clk 0:00:04]} 45. Rxd6+ {[%clk 0:00:25]}  Kxd6 {[%clk 0:00:05]} 46. g3 {[%clk 0:00:25]}  Nd3 {[%clk 0:00:05]} 47. f4 {[%clk 0:00:24]}  exf4 {[%clk 0:00:06]} 48. gxf4 {[%clk 0:00:24]}  Nxf4 {[%clk 0:00:07]} 49. e5+ {[%clk 0:00:25]}  Kxe5 {[%clk 0:00:08]} 1/2-1/2


[Site "https://www.chess.com"]

[Event "Titled Tuesday Blitz May 9 Early 2023"]
[White "Djordjevic, Vuk"]
[Black "Shimanov, Aleksandr"]
[WhiteFideId "902098"]
[BlackFideId "4198603"]
[WhiteElo "2452"]
[BlackElo "2631"]
[Result "0-1"]
[Round "04"]
[TimeControl "180+2"]
[Date "2023.05.09"]
[WhiteClock "0:00:00"]
[BlackClock "0:00:12"]

1. d4 {[%clk 0:03:00]}  d5 {[%clk 0:02:58]} 2. Nf3 {[%clk 0:02:59]}  Nf6 {[%clk 0:02:56]} 3. c4 {[%clk 0:02:59]}  c6 {[%clk 0:02:56]} 4. Nc3 {[%clk 0:02:59]}  dxc4 {[%clk 0:02:56]} 5. a4 {[%clk 0:02:59]}  Bf5 {[%clk 0:02:56]} 6. e3 {[%clk 0:02:55]}  e6 {[%clk 0:02:54]} 7. Bxc4 {[%clk 0:02:55]}  Bb4 {[%clk 0:02:55]} 8. O-O {[%clk 0:02:56]}  Nbd7 {[%clk 0:02:51]} 9. Ne2 {[%clk 0:02:53]}  O-O {[%clk 0:02:47]} 10. Ng3 {[%clk 0:02:52]}  Bg6 {[%clk 0:02:47]} 11. b3 {[%clk 0:02:50]}  Qe7 {[%clk 0:02:39]} 12. Bb2 {[%clk 0:02:50]}  Rad8 {[%clk 0:02:33]} 13. Nh4 {[%clk 0:02:50]}  a5 {[%clk 0:02:22]} 14. Nxg6 {[%clk 0:02:49]}  hxg6 {[%clk 0:02:23]} 15. Qc2 {[%clk 0:02:30]}  Rfe8 {[%clk 0:02:03]} 16. Rfd1 {[%clk 0:02:22]}  Bd6 {[%clk 0:01:57]} 17. Nf1 {[%clk 0:01:49]}  e5 {[%clk 0:01:49]} 18. Qxg6 {[%clk 0:01:37]}  b5 {[%clk 0:01:49]} 19. axb5 {[%clk 0:01:37]}  cxb5 {[%clk 0:01:50]} 20. Bxf7+ {[%clk 0:01:28]}  Qxf7 {[%clk 0:01:49]} 21. Qxf7+ {[%clk 0:01:28]}  Kxf7 {[%clk 0:01:50]} 22. Rxa5 {[%clk 0:01:28]}  Rb8 {[%clk 0:01:35]} 23. Ng3 {[%clk 0:01:16]}  Rb7 {[%clk 0:01:21]} 24. Nf5 {[%clk 0:01:08]}  Bb4 {[%clk 0:01:20]} 25. dxe5 {[%clk 0:01:04]}  Nxe5 {[%clk 0:01:17]} 26. Ra6 {[%clk 0:00:57]}  Rd7 {[%clk 0:00:51]} 27. Rxd7+ {[%clk 0:00:47]}  Nexd7 {[%clk 0:00:52]} 28. h3 {[%clk 0:00:41]}  Rc8 {[%clk 0:00:52]} 29. Nd4 {[%clk 0:00:32]}  Be7 {[%clk 0:00:40]} 30. Nxb5 {[%clk 0:00:26]}  Rc2 {[%clk 0:00:40]} 31. Bd4 {[%clk 0:00:26]}  Ne4 {[%clk 0:00:38]} 32. f3 {[%clk 0:00:21]}  Ng3 {[%clk 0:00:35]} 33. Ra1 {[%clk 0:00:17]}  Nc5 {[%clk 0:00:27]} 34. Rb1 {[%clk 0:00:12]}  Nd3 {[%clk 0:00:26]} 35. Rd1 {[%clk 0:00:09]}  Nc1 {[%clk 0:00:19]} 36. Be5 {[%clk 0:00:07]}  Nge2+ {[%clk 0:00:18]} 37. Kh2 {[%clk 0:00:07]}  Nxb3 {[%clk 0:00:17]} 38. h4 {[%clk 0:00:06]}  Nd2 {[%clk 0:00:17]} 39. Kh3 {[%clk 0:00:03]}  g6 {[%clk 0:00:14]} 40. Nd4 {[%clk 0:00:04]}  Nxd4 {[%clk 0:00:14]} 41. Bxd4 {[%clk 0:00:04]}  Nb3 {[%clk 0:00:14]} 42. g4 {[%clk 0:00:05]}  Bd6 {[%clk 0:00:13]} 43. f4 {[%clk 0:00:03]}  Nd2 {[%clk 0:00:13]} 44. Kg3 {[%clk 0:00:02]}  Ke6 {[%clk 0:00:13]} 45. h5 {[%clk 0:00:03]}  gxh5 {[%clk 0:00:13]} 46. gxh5 {[%clk 0:00:04]}  Ne4+ {[%clk 0:00:13]} 47. Kf3 {[%clk 0:00:03]}  Kf5 {[%clk 0:00:13]} 48. Rf1 {[%clk 0:00:03]}  Nd2+ {[%clk 0:00:13]} 49. Ke2 {[%clk 0:00:03]}  Nxf1+ {[%clk 0:00:14]} 50. Kxf1 {[%clk 0:00:04]}  Ke4 {[%clk 0:00:14]} 51. h6 {[%clk 0:00:04]}  Kf3 {[%clk 0:00:14]} 52. Ke1 {[%clk 0:00:04]}  Rc1+ {[%clk 0:00:12]} 53. Kd2 {[%clk 0:00:05]}  Rh1 {[%clk 0:00:13]} 54. Bg7 {[%clk 0:00:05]}  Ke4 {[%clk 0:00:13]} 55. Kc3 {[%clk 0:00:00]}  Bc5 {[%clk 0:00:12]} 0-1


[Site "https://www.chess.com"]

[Event "Titled Tuesday Blitz May 9 Early 2023"]
[White "Beerdsen, Thomas"]
[Black "Hakobyan, Aram"]
[WhiteFideId "1030108"]
[BlackFideId "13306677"]
[WhiteElo "2549"]
[BlackElo "2584"]
[Result "1-0"]
[Round "04"]
[TimeControl "180+2"]
[Date "2023.05.09"]
[WhiteClock "0:00:33"]
[BlackClock "0:00:00"]

1. e4 {[%clk 0:03:00]}  g6 {[%clk 0:02:57]} 2. d4 {[%clk 0:03:00]}  Bg7 {[%clk 0:02:58]} 3. Nc3 {[%clk 0:03:01]}  c5 {[%clk 0:02:58]} 4. dxc5 {[%clk 0:03:00]}  Bxc3+ {[%clk 0:02:58]} 5. bxc3 {[%clk 0:03:01]}  Nf6 {[%clk 0:02:58]} 6. Bd3 {[%clk 0:03:01]}  Qa5 {[%clk 0:02:57]} 7. Nf3 {[%clk 0:03:01]}  Qxc5 {[%clk 0:02:55]} 8. O-O {[%clk 0:03:00]}  d6 {[%clk 0:02:55]} 9. h3 {[%clk 0:03:00]}  Nbd7 {[%clk 0:02:52]} 10. Rb1 {[%clk 0:03:00]}  b6 {[%clk 0:02:49]} 11. Re1 {[%clk 0:02:57]}  Bb7 {[%clk 0:02:47]} 12. Rb5 {[%clk 0:02:57]}  Qc6 {[%clk 0:02:37]} 13. Bf1 {[%clk 0:02:34]}  O-O {[%clk 0:02:34]} 14. e5 {[%clk 0:02:33]}  dxe5 {[%clk 0:02:34]} 15. Nxe5 {[%clk 0:02:34]}  Nxe5 {[%clk 0:02:34]} 16. Rbxe5 {[%clk 0:02:34]}  Rad8 {[%clk 0:02:18]} 17. Bd2 {[%clk 0:02:33]}  Rd7 {[%clk 0:02:02]} 18. Qc1 {[%clk 0:02:30]}  Re8 {[%clk 0:01:35]} 19. Bh6 {[%clk 0:02:31]}  Nd5 {[%clk 0:01:16]} 20. c4 {[%clk 0:02:28]}  Nc7 {[%clk 0:01:14]} 21. Qf4 {[%clk 0:02:25]}  f6 {[%clk 0:01:11]} 22. R5e3 {[%clk 0:02:04]}  e5 {[%clk 0:01:08]} 23. Qh4 {[%clk 0:02:05]}  Rf7 {[%clk 0:01:00]} 24. Rd1 {[%clk 0:02:03]}  Ne6 {[%clk 0:00:58]} 25. c5 {[%clk 0:01:58]}  b5 {[%clk 0:00:50]} 26. Red3 {[%clk 0:01:56]}  Nd4 {[%clk 0:00:49]} 27. Qg4 {[%clk 0:01:46]}  Qxc5 {[%clk 0:00:37]} 28. c3 {[%clk 0:01:45]}  Nf5 {[%clk 0:00:37]} 29. Rd8 {[%clk 0:01:44]}  Re7 {[%clk 0:00:25]} 30. Bc1 {[%clk 0:01:36]}  Kg7 {[%clk 0:00:15]} 31. a4 {[%clk 0:01:21]}  a6 {[%clk 0:00:15]} 32. axb5 {[%clk 0:01:21]}  axb5 {[%clk 0:00:16]} 33. Qe2 {[%clk 0:01:19]}  Bc6 {[%clk 0:00:16]} 34. Qa2 {[%clk 0:01:15]}  Rxd8 {[%clk 0:00:14]} 35. Rxd8 {[%clk 0:01:15]}  Re8 {[%clk 0:00:15]} 36. Rd1 {[%clk 0:01:14]}  Qxc3 {[%clk 0:00:08]} 37. Bb2 {[%clk 0:01:04]}  Qc5 {[%clk 0:00:07]} 38. Rc1 {[%clk 0:01:04]}  Qd5 {[%clk 0:00:07]} 39. Qa7+ {[%clk 0:01:03]}  Re7 {[%clk 0:00:07]} 40. Qb8 {[%clk 0:01:03]}  Bb7 {[%clk 0:00:05]} 41. Ba3 {[%clk 0:01:03]}  Rf7 {[%clk 0:00:04]} 42. Rc7 {[%clk 0:01:02]}  Kh6 {[%clk 0:00:03]} 43. Rc5 {[%clk 0:00:57]}  Qe4 {[%clk 0:00:02]} 44. Rxb5 {[%clk 0:00:56]}  Bc6 {[%clk 0:00:03]} 45. Bc1+ {[%clk 0:00:56]}  g5 {[%clk 0:00:03]} 46. Rb4 {[%clk 0:00:57]}  Rb7 {[%clk 0:00:02]} 47. Qf8+ {[%clk 0:00:56]}  Kg6 {[%clk 0:00:02]} 48. Rxe4 {[%clk 0:00:56]}  Bxe4 {[%clk 0:00:03]} 49. Qg8+ {[%clk 0:00:37]}  Kh6 {[%clk 0:00:03]} 50. Qc4 {[%clk 0:00:33]}  Bb1 {[%clk 0:00:00]} 51. h4 {[%clk 0:00:33]} 1-0


[Site "https://www.chess.com"]

[Event "Titled Tuesday Blitz May 9 Early 2023"]
[White "Peng, Li Min"]
[Black "Demchenko, Anton"]
[WhiteFideId "14112620"]
[BlackFideId "4160258"]
[WhiteElo "2436"]
[BlackElo "2545"]
[Result "1-0"]
[Round "04"]
[TimeControl "180+2"]
[Date "2023.05.09"]
[WhiteClock "0:00:39"]
[BlackClock "0:00:00"]

1. e4 {[%clk 0:03:00]}  e5 {[%clk 0:02:58]} 2. Nf3 {[%clk 0:03:00]}  Nc6 {[%clk 0:02:59]} 3. Nc3 {[%clk 0:03:01]}  Nf6 {[%clk 0:02:59]} 4. h3 {[%clk 0:03:02]}  g6 {[%clk 0:02:52]} 5. d4 {[%clk 0:03:01]}  exd4 {[%clk 0:02:53]} 6. Nxd4 {[%clk 0:03:01]}  Bg7 {[%clk 0:02:53]} 7. Nxc6 {[%clk 0:03:02]}  bxc6 {[%clk 0:02:52]} 8. Bd3 {[%clk 0:03:03]}  O-O {[%clk 0:02:51]} 9. O-O {[%clk 0:03:03]}  d6 {[%clk 0:02:49]} 10. Bf4 {[%clk 0:02:56]}  Nd7 {[%clk 0:02:48]} 11. Qd2 {[%clk 0:02:51]}  Rb8 {[%clk 0:02:46]} 12. Rab1 {[%clk 0:02:50]}  Ne5 {[%clk 0:02:34]} 13. Rfe1 {[%clk 0:02:48]}  Re8 {[%clk 0:02:28]} 14. Bf1 {[%clk 0:02:34]}  Be6 {[%clk 0:01:11]} 15. b3 {[%clk 0:02:28]}  Rb4 {[%clk 0:00:21]} 16. a3 {[%clk 0:02:23]}  Rd4 {[%clk 0:00:13]} 17. Qc1 {[%clk 0:02:17]}  f5 {[%clk 0:00:11]} 18. Be3 {[%clk 0:02:14]}  c5 {[%clk 0:00:11]} 19. Bxd4 {[%clk 0:02:03]}  cxd4 {[%clk 0:00:12]} 20. exf5 {[%clk 0:02:03]}  Bxf5 {[%clk 0:00:13]} 21. Ne4 {[%clk 0:02:04]}  Rf8 {[%clk 0:00:11]} 22. Ng3 {[%clk 0:01:49]}  Bd7 {[%clk 0:00:10]} 23. Qd2 {[%clk 0:01:49]}  Qh4 {[%clk 0:00:09]} 24. Re4 {[%clk 0:01:47]}  Qf6 {[%clk 0:00:09]} 25. Rd1 {[%clk 0:01:43]}  c5 {[%clk 0:00:10]} 26. b4 {[%clk 0:01:43]}  Bc6 {[%clk 0:00:10]} 27. bxc5 {[%clk 0:01:35]}  dxc5 {[%clk 0:00:09]} 28. Re2 {[%clk 0:01:34]}  Nc4 {[%clk 0:00:03]} 29. Qe1 {[%clk 0:01:32]}  Nd6 {[%clk 0:00:04]} 30. Re6 {[%clk 0:01:31]}  Qd8 {[%clk 0:00:03]} 31. Re7 {[%clk 0:01:14]}  Bd5 {[%clk 0:00:04]} 32. Rxa7 {[%clk 0:01:14]}  h5 {[%clk 0:00:04]} 33. c4 {[%clk 0:00:58]}  Bc6 {[%clk 0:00:03]} 34. Qe6+ {[%clk 0:00:57]}  Kh7 {[%clk 0:00:00]} 35. Nxh5 {[%clk 0:00:39]} 1-0


[Site "https://www.chess.com"]

[Event "Titled Tuesday Blitz May 9 Early 2023"]
[White "Lenderman, Aleksandr"]
[Black "Kaasen, Tor Fredrik"]
[WhiteFideId "2021285"]
[BlackFideId "1516647"]
[WhiteElo "2607"]
[BlackElo "2349"]
[Result "1-0"]
[Round "04"]
[TimeControl "180+2"]
[Date "2023.05.09"]
[WhiteClock "0:00:27"]
[BlackClock "0:00:00"]

1. Nf3 {[%clk 0:03:00]}  d5 {[%clk 0:03:00]} 2. e3 {[%clk 0:03:00]}  Nf6 {[%clk 0:02:59]} 3. c4 {[%clk 0:03:00]}  e6 {[%clk 0:03:00]} 4. b3 {[%clk 0:02:59]}  Bd6 {[%clk 0:02:58]} 5. Bb2 {[%clk 0:03:00]}  O-O {[%clk 0:02:59]} 6. Nc3 {[%clk 0:03:00]}  c5 {[%clk 0:02:40]} 7. cxd5 {[%clk 0:02:59]}  Nxd5 {[%clk 0:02:40]} 8. Nxd5 {[%clk 0:02:59]}  exd5 {[%clk 0:02:41]} 9. Be2 {[%clk 0:02:58]}  Nc6 {[%clk 0:02:40]} 10. d4 {[%clk 0:02:59]}  cxd4 {[%clk 0:02:40]} 11. Nxd4 {[%clk 0:03:00]}  Qa5+ {[%clk 0:02:33]} 12. Kf1 {[%clk 0:03:00]}  Re8 {[%clk 0:02:29]} 13. Nb5 {[%clk 0:02:59]}  Be5 {[%clk 0:02:23]} 14. Bxe5 {[%clk 0:02:59]}  Rxe5 {[%clk 0:02:23]} 15. Qe1 {[%clk 0:02:56]}  Qb6 {[%clk 0:02:16]} 16. Qc3 {[%clk 0:02:55]}  Bf5 {[%clk 0:02:14]} 17. Nd4 {[%clk 0:02:54]}  Nxd4 {[%clk 0:02:12]} 18. Qxd4 {[%clk 0:02:55]}  Qxd4 {[%clk 0:02:05]} 19. exd4 {[%clk 0:02:54]}  Ree8 {[%clk 0:01:59]} 20. g4 {[%clk 0:02:52]}  Be4 {[%clk 0:01:56]} 21. f3 {[%clk 0:02:51]}  Bg6 {[%clk 0:01:36]} 22. Kf2 {[%clk 0:02:50]}  Rac8 {[%clk 0:01:35]} 23. Rac1 {[%clk 0:02:49]}  h5 {[%clk 0:01:32]} 24. Bb5 {[%clk 0:02:46]}  Red8 {[%clk 0:01:32]} 25. h3 {[%clk 0:02:41]}  Kf8 {[%clk 0:01:31]} 26. Rhe1 {[%clk 0:02:38]}  a6 {[%clk 0:01:22]} 27. Bf1 {[%clk 0:02:33]}  Rxc1 {[%clk 0:01:16]} 28. Rxc1 {[%clk 0:02:33]}  Ke7 {[%clk 0:01:16]} 29. a4 {[%clk 0:02:10]}  Kd6 {[%clk 0:01:16]} 30. a5 {[%clk 0:02:10]}  hxg4 {[%clk 0:01:12]} 31. hxg4 {[%clk 0:02:09]}  Rh8 {[%clk 0:01:13]} 32. b4 {[%clk 0:01:57]}  f6 {[%clk 0:00:57]} 33. Rc5 {[%clk 0:01:54]}  Rh2+ {[%clk 0:00:54]} 34. Bg2 {[%clk 0:01:53]}  Be8 {[%clk 0:00:53]} 35. Rc8 {[%clk 0:01:50]}  Bd7 {[%clk 0:00:38]} 36. Rg8 {[%clk 0:01:39]}  Rh7 {[%clk 0:00:35]} 37. Kg3 {[%clk 0:01:33]}  Kc6 {[%clk 0:00:33]} 38. f4 {[%clk 0:01:29]}  Kd6 {[%clk 0:00:24]} 39. f5 {[%clk 0:01:20]}  Bc6 {[%clk 0:00:20]} 40. Rf8 {[%clk 0:00:59]}  Ke7 {[%clk 0:00:20]} 41. Rb8 {[%clk 0:00:57]}  Kd6 {[%clk 0:00:20]} 42. Rc8 {[%clk 0:00:54]}  Rh6 {[%clk 0:00:19]} 43. Rd8+ {[%clk 0:00:52]}  Ke7 {[%clk 0:00:18]} 44. Rg8 {[%clk 0:00:52]}  Rh7 {[%clk 0:00:18]} 45. Kf4 {[%clk 0:00:52]}  Kd6 {[%clk 0:00:15]} 46. Bf3 {[%clk 0:00:52]}  Ke7 {[%clk 0:00:14]} 47. g5 {[%clk 0:00:49]}  Rh4+ {[%clk 0:00:10]} 48. Bg4 {[%clk 0:00:49]}  Kf7 {[%clk 0:00:11]} 49. Rc8 {[%clk 0:00:48]}  fxg5+ {[%clk 0:00:11]} 50. Kxg5 {[%clk 0:00:48]}  Rh2 {[%clk 0:00:09]} 51. Rc7+ {[%clk 0:00:48]}  Kf8 {[%clk 0:00:10]} 52. f6 {[%clk 0:00:45]}  gxf6+ {[%clk 0:00:09]} 53. Kxf6 {[%clk 0:00:46]}  Rf2+ {[%clk 0:00:09]} 54. Bf5 {[%clk 0:00:43]}  Be8 {[%clk 0:00:02]} 55. Rxb7 {[%clk 0:00:43]}  Rd2 {[%clk 0:00:02]} 56. Ke5 {[%clk 0:00:36]}  Rf2 {[%clk 0:00:01]} 57. Be6 {[%clk 0:00:31]}  Rh2 {[%clk 0:00:01]} 58. Bxd5 {[%clk 0:00:28]}  Rh5+ {[%clk 0:00:01]} 59. Kd6 {[%clk 0:00:28]}  Rh6+ {[%clk 0:00:02]} 60. Be6 {[%clk 0:00:28]}  Rh3 {[%clk 0:00:01]} 61. d5 {[%clk 0:00:27]}  Re3 {[%clk 0:00:01]} 62. Rb8 {[%clk 0:00:28]}  Rd3 {[%clk 0:00:00]} 63. Bd7 {[%clk 0:00:27]} 1-0


[Site "https://www.chess.com"]